Cogmind - Beta 15 @@@ ROGUE MODE // 2025.08.07 @ 13:11:06 // Halloween2019/Abominations Player: H3-RMN Result: Core destroyed Performance ------------- Evolutions (0) 0 Regions Visited (1) 200 Robots Destroyed (12) 60 Value Destroyed (507) 507 Prototype IDs (0) 0 Alien Tech Used (0) 0 Bonus (0) 0 TOTAL SCORE: 767 Bonus ------- None Cogmind --------- Core Integrity 0/250 Matter 300/300 Energy 100/100 System Corruption 1% Temperature Cool (0) Movement Treading (160) Location -10/Materials Parts ------- > --- POWER (1) -------- (None) > --- PROPULSION (2) --- Light Treads Compact Wheel > --- UTILITY (2) ------ Small Storage Unit Structural Scanner > --- WEAPON (2) ------- (None) > --- INVENTORY (8) ---- Aluminum Leg Wheel Wheel Compact Wheel Structural Scanner Peak State ------------ > --- POWER ------------ Light Ion Engine > --- PROPULSION ------- Light Treads Compact Wheel > --- UTILITY ---------- Small Storage Unit Seismic Detector > --- WEAPON ----------- Assault Rifle Light Assault Rifle > --- INVENTORY -------- Ion Engine Light Treads Aluminum Leg Aluminum Leg Wheel Compact Wheel Small Laser [Rating: 7] Favorites ----------- Power Light Ion Engine Engine Light Ion Engine Propulsion Light Treads Treads Light Treads Leg Aluminum Leg Wheel Compact Wheel Utility Small Storage Unit Device Seismic Detector Storage Small Storage Unit Weapon Assault Rifle Energy Gun Small Laser Ballistic Gun Assault Rifle Ballistic Cannon Light Cannon Build | -11 -10 ------- Run | Yrd Mat Slots Evolved . | . . Power . | . . Propulsion . | . . Utility . | . . Weapon . | . . Parts Attached 19 | 8 11 Power 3 | 1 2 Engine 3 | 1 2 Core . | . . Reactor . | . . Propulsion 8 | 3 5 Treads 3 | 1 2 Leg 1 | . 1 Wheel 4 | 2 2 Hover . | . . Flight . | . . Utility 4 | 2 2 Device 3 | 1 2 Storage 1 | 1 . Processor . | . . Hackware . | . . Protection . | . . Artifact . | . . Weapon 4 | 2 2 Energy Gun 1 | . 1 Energy Cannon . | . . Ballistic Gun 2 | 2 . Ballistic Cannon 1 | . 1 Launcher . | . . Special Weapon . | . . Impact Weapon . | . . Slashing Weapon . | . . Piercing Weapon . | . . Special Melee Weapon . | . . Unidentified Prototypes . | . . Parts Lost 12 | . 12 Power 3 | . 3 Propulsion 3 | . 3 Utility 2 | . 2 Weapon 4 | . 4 Highest Loss Streak 3 | . 3 To Critical Strikes . | . . Average Backups 6 | 5 6 Power . | . . Propulsion 4 | 3 4 Utility . | . . Weapon . | . . Tool/Special . | . . Unused Backups 3 | . 3 Power . | . . Propulsion 2 | . 2 Utility 1 | . 1 Weapon . | . . Tool/Special . | . . Average Slot Usage (%) 84 | . 84 Engine 8 | . 8 Treads 17 | . 17 Wheel 9 | . 9 Device 12 | . 12 Storage 14 | . 14 Energy Gun 2 | . 2 Ballistic Gun 13 | . 13 Ballistic Cannon 3 | . 3 Peak Build Rating 7 | 7 7 Average Rating 5 | 5 5 On Entrance 3 | . 7 Naked Turns . | . . Heaviest Build 14 | 12 14 Greatest Support 40 | 26 40 Greatest Overweight (x) 2 | . 2 Average Overweight (x) . | . . Largest Inventory Capacity 8 | 8 8 Average Capacity 7 | 7 8 Most Carried 8 | 8 8 Average Carried 6 | 5 6 Final Capacity 8 | 8 8 Final Carried 8 | 8 5 Class Distribution -------------------- 90% | Mutant 9% | Scavenger-Mutant Dominant Class ---------------- Mutant | -10/Materials Resources | -11 -10 ----------- Run | Yrd Mat Matter Collected 544 | 316 228 Remotely . | . . Salvage Created 545 | 154 391 Parts 31 | 7 24 Haulers Intercepted . | . . Recyclers Shooed . | . . Parts Field Recycled . | . . Retrieved Matter . | . . Parts Self-Destructed . | . . Prevented . | . . Kills | -11 -10 ------- Run | Yrd Mat Combat Hostiles Destroyed 8 | . 8 Melee 1 | . 1 Guns 6 | . 6 Cannons 1 | . 1 Classes Destroyed 3 | 2 1 Tunneler 3 | 3 . Recycler 1 | 1 . Abomination 8 | . 8 Best Kill Streak 4 | 4 4 Combat Bots Only 4 | . 4 Max Kills in Single Turn 1 | 1 1 Gunslinging . | . . Exploded . | . . Melee 1 | . 1 Uniques/NPCs Destroyed . | . . Combat | -11 -10 -------- Run | Yrd Mat Hostile Shots Fired 61 | . 61 Missed 11 | . 11 Hits 50 | . 50 Melee 18 | . 18 Projectile 32 | . 32 Critical Strikes 4 | . 4 Damage Taken 1498 | . 1498 Core 289 | . 289 Absorbed by Shields . | . . Core Remaining (%) 100 | 100 . Volleys Fired 48 | 9 39 Largest 2 | 2 2 Hottest 60 | 40 60 Shots Fired 85 | 18 67 Gun 78 | 18 60 Cannon 7 | . 7 Launcher . | . . Special . | . . Kinetic 70 | 18 52 Thermal 15 | . 15 Explosive . | . . Electromagnetic . | . . Robot Hit Streak 21 | 4 21 Robot Miss Streak 2 | 2 2 Penetration Max . | . . Secondary Targets . | . . Shots Hit Robots 60 | 9 51 Core Hits 31 | 6 25 Critical Kills . | . . Critical Parts Destroyed . | . . Critical Strikes . | . . Melee Attacks . | . . Impact . | . . Slashing . | . . Piercing . | . . Sneak Attacks . | . . Combat Hostiles . | . . Follow-up Attacks . | . . Damage Inflicted 770 | 100 670 Guns 646 | 100 546 Cannons 85 | . 85 Explosions . | . . Melee . | . . Ramming 39 | . 39 Kinetic 569 | 100 469 Thermal 162 | . 162 Explosive . | . . Electromagnetic . | . . Impact . | . . Slashing . | . . Piercing . | . . Highest Corruption 1 | . 1 Average Corruption 1 | . 1 Corruption Purged . | . . Corruption Blocked . | . . Effects 2 | . 2 Message Errors 1 | . 1 Data Loss (minor) 1 | . 1 Overload Shots . | . . Overflow Damage 9 | . 9 Projectiles 9 | . 9 Explosions . | . . Melee . | . . Knockbacks 2 | . 2 Impact 1 | . 1 Kinetic 1 | . 1 Secondary . | . . Self-Inflicted Damage 13 | . 13 Shots . | . . Rammed 16 | . 16 Targets Rammed 16 | . 16 Kicked . | . . Crushed . | . . Highest Temperature 12 | . 12 Average Temperature 5 | . 5 Received Heat Transfer 174 | . 174 Siege Activations . | . . Martial Activations . | . . Shielding Activations . | . . Robots Disrupted . | . . Combat Hostiles . | . . Robots Corrupted . | . . Combat Hostiles . | . . Parts Fried . | . . Impact Corruptions . | . . Robots Melted . | . . Combat Hostiles . | . . Parts Melted . | . . Heat Transferred 54 | . 54 Parts Sabotaged . | . . Parts Stolen . | . . Parts Stripped . | . . Power Chain Reactions . | . . Alert | -11 -10 ------- Run | Yrd Mat Maximum Alert Level . | . . Low Security (%) 100 | 100 100 Level 1 . | . . Level 2 . | . . Level 3 . | . . Level 4 . | . . Level 5 . | . . High Security . | . . Max Security . | . . Peak Influence 10 | 10 . Initial . | . . Average . | 1 . Influence Increases 20 | 20 . Destroy 0b10 Robot/NC 20 | 20 . Influence Decreases 20 | 20 . Time Decay 20 | 20 . Squads Dispatched 10 | . 10 Investigation 3 | . 3 Extermination . | . . Reinforcement 3 | . 3 Assault 4 | . 4 Garrison . | . . Intercept . | . . Searches Triggered . | . . Construction Impeded . | . . Haulers Reinforced . | . . Active Scanning Responses . | . . Cargo Convoy Interrupts . | . . Stealth | -11 -10 --------- Run | Yrd Mat Distress Signals 2 | . 2 Communications Jammed . | . . Distress Signals . | . . Times Spotted 13 | . 13 Peak Tracking Total 5 | . 5 Tactical Retreats 1 | . 1 Traps | -11 -10 ------- Run | Yrd Mat Traps Triggered . | . . Indirectly . | . . Trap Hack Attempts . | . . Triggered . | . . Disarmed . | . . Reprogrammed . | . . Reused . | . . Traps Extracted . | . . Installed . | . . Triggered . | . . Machines | -11 -10 ---------- Run | Yrd Mat Machines Disabled . | . . Max in Single Turn . | . . Machines Repaired . | . . Machines Dismantled . | . . Machines Sabotaged . | . . Overloaded Fab Kills . | . . Hacking | -11 -10 --------- Run | Yrd Mat Machines Accessed 1 | . 1 Terminals 1 | . 1 Fabricators . | . . Repair Stations . | . . Recycling Units . | . . Scanalyzers . | . . Garrison Access . | . . Total Hacks 3 | . 3 Successful 1 | . 1 Failed 2 | . 2 Catastrophic 1 | . 1 Database Lockouts . | . . Manual 3 | . 3 Terminals 3 | . 3 Fabricators . | . . Repair Stations . | . . Recycling Units . | . . Scanalyzers . | . . Garrison Access . | . . Terminal Hacks . | . . Fabricator Hacks . | . . Repair Station Hacks . | . . Recycling Unit Hacks . | . . Scanalyzer . | . . Garrison Access Hacks . | . . Unauthorized Hacks 1 | . 1 Terminals 1 | . 1 Track 1 | . 1 Fabricators . | . . Repair Stations . | . . Recycling Units . | . . Scanalyzers . | . . Garrison Access . | . . Data Cores Recovered . | . . Used . | . . Hacking Detections 1 | . 1 Full Trace Events 1 | . 1 Feedback Events . | . . Feedback Blocked . | . . Robot Schematics Acquired . | . . Robots Built . | . . Authchips . | . . Time . | . . Total Robot Build Rating . | . . Part Schematics Acquired . | . . Parts Built . | . . Authchips . | . . Time . | . . Total Part Build Rating . | . . Parts Repaired . | . . Time . | . . Parts Recycled . | . . Recycled Matter . | . . Retrieved Matter . | . . Retrieved Components . | . . Parts Scanalyzed . | . . Part Schematics Acquired . | . . Parts Damaged . | . . Bothacking | -11 -10 ------------ Run | Yrd Mat Used RIF Installer . | . . Robots Hacked . | . . Non-combat . | . . Combat . | . . Robot Hacks Applied . | . . Relay Couplers Released . | . . Fabnet Peak Effective % . | . . Robots Rewired . | . . Allies Hacked . | . . Hacks Repelled . | . . Allies | -11 -10 -------- Run | Yrd Mat Total Allies . | . . Largest Group . | . . Highest-Rated Group . | . . Highest-Rated Ally . | . . Total Orders . | . . Ally Attacks . | . . Total Damage . | . . Kills . | . . Allies Corrupted . | . . Allies Melted . | . . Intel | -11 -10 ------- Run | Yrd Mat Active Infowar (turns) 459 | 61 398 Structural 45 | . 45 Seismic 414 | 61 353 Robot Analysis Total . | . . Derelict Logs Recovered . | . . Drone Launches . | . . Drone Recoveries . | . . Exploration | -11 -10 ------------- Run | Yrd Mat Turns Passed 614 | 122 492 Spaces Moved 265 | 68 197 Core 7 | 1 6 Treads 27 | . 27 Legs . | . . Wheels 231 | 67 164 Hover . | . . Flight . | . . Fastest Speed 50 | 50 80 Average Speed 98 | 94 99 Slowest Speed 160 | 100 160 Overloaded Moves . | . . Propulsion Burnouts . | . . Robots Hopped . | . . Potential Cave-ins . | . . Cave-ins Triggered . | . . Exploration Rate (%) 14 | 4 24 Regions Visited 1 Branch Regions . Pre-discovered Areas . | . . Known Exits Taken . | . . Unknown Exits Taken 1 | 1 . Scrap Searched . | . . Spaces Dug . | . . Terrain Destroyed . | . . Melee . | . . Projectile . | . . AOE . | . . Terrain Rammed . | . . Walls Destroyed . | . . Machines Disabled . | . . Actions | -11 -10 --------- Run | Yrd Mat Total 528 | 105 423 Wait 165 | 13 152 Move 264 | 67 197 Hop . | . . Pick Up 12 | 8 4 Fast Attach 10 | 7 3 Attach 7 | . 7 Detach . | . . Swap 4 | 1 3 Drop 2 | . 2 Fire 48 | 9 39 Melee . | . . Ram 8 | . 8 Kick . | . . Crush 8 | . 8 Escape Stasis . | . . Rewire . | . . Trap . | . . Miscellaneous . | . . Route ------- -11/Scrapyard -10/Materials History --------- Turn | Location | Event 18 | -11/Scrapyard | Discovered new exit (range 15) 123 | -11/Scrapyard | Entered Materials 314 | -10/Materials | Build established: Mutant 412 | -10/Materials | Core integrity fell below 50% 441 | -10/Materials | Lost 3 parts (1p1n1w) 513 | -10/Materials | Lost 3 parts (1u2w) 603 | -10/Materials | Core integrity fell below 20% 614 | -10/Materials | Lost 3 parts (1p1n1u) 615 | -10/Materials | Core destroyed Last Messages --------------- 00602_ Slammed into Lesser Abomination. 00602_ Lgt. Treads broken. 00602_ Destabilizing: Short circuit. 00603_ Parts repaired by Paradox Anomaly. 00603_ Slammed into Lesser Abomination. 00604_ Parts repaired by Paradox Anomaly. 00604_ Slammed into Lesser Abomination. 00608_ Lesser Abomination knocked back. 00609_ Lesser Abomination spits out Autogun. 00609_ Lesser Abomination feeds off Hungry Anomaly, taking Autogun. 00609_ Hungry Anomaly eats Autogun. 00609_ Slammed into Lesser Abomination. 00612_ ALERT: Dispatching additional forces to engage threats. 00612_ Slammed into Lesser Abomination. 00615_ Unstable Anomaly suddenly flashes brightly. 00615_ Engulfed by violent ripples tearing at the fabric of space. Map ----- +----------------------------------------------------+ | ?????????? ##" """"""?????????? | | ?????????? ????????? | | ???####### ????????? | | ???# % ????????? | | ???#%###"" ##+#???????????????? | | ???# ## " #??????????????????? | | ####+#####% #??????????????????? | | # + #??????????????????? | | # """ # #??????????????????? | | # """ % # # ?????????????????? | | # """ # # ?????????????????? | | # % + # ?????????????????? | | # % # # ?????????????? | | # % "T"%# A######?????????????? | | # """%# ##?????????????? | | # % ; % ##?????????????? | | #####+##+;A ##?????????????? | | ???## n ##?????????????? | | ???## %% ##?????????????? | | ???## ##?????????????? | | ????# ;;###??????????????? | | ????#### ; ##???????????????? | | ??????## ; ##???????????????? | | ######## % ; ##???????????????? | | # #%%%%%; ##???????????????? | | # " ^ #@ %; ##???????????????? | | # """ /A n; ###??????????????? | | #^""" # ; #####????????????? | | #^""" # ;;### #????????????? | | # "" # ## ##???###?????? | | # """ + ##"########?????? | | # "" %# """ # ##?????? | | #^""" # """ %# T%##?????? | | # " # " " # % ##?????? | | # #% % # ##?????? | | # # % + % %##?????? | | # # """ #% % """ ##?????? | | ######## """ # """ ##?????? | | # # """ # """ #??????? | | # %! + # #??????? | | # ! # ##########??????? | | # !!! + ##??????????????? | | # %% ###### ##??????????????? | | #% % ###### ##??????????????? | | #########??#######??????????????? | | #########??#######??????????????? | | ????????????????????????????????? | | ????????????????????????????????? | | ????????????????????????????????? | | ????????????????????????????????? | +----------------------------------------------------+ Best States ------------- Heat Dissipation 25 Energy Generation 10 Energy Capacity 250 Matter Stores 300 Matter Capacity 300 Sight Range 16 Terrain Scan Density 10 Additional Mass Support 6 Evasion (%) 44 Recoil Reduction 2 Item Schematics ----------------- None Robot Schematics ------------------ None Fabricated ------------ Nothing Repaired ---------- Nothing Alien Tech Used ----------------- None Achievements -------------- None Challenges ------------ None Game ------ Seed WarlordWeaponsCorpse Manual? 0 Play Time 00:10:59 Cumulative 761.5 hours Start 2025.08.07 @ 12:59:20 End 2025.08.07 @ 13:11:06 Sessions 1 Manual Loads 0 Difficulty Rogue Special Mode Halloween2019/Abominations Game No. 292 Rogue 288 Adventurer 4 Explorer 0 Win Type - Total 13 Types 7/1/1/1/0/1/0/1/0/1 Lore% 94 Gallery% 89 Achievement% 87 Wizard Run 0 Options --------- Layout 2 ASCII 0 Keyboard 0 Movement Numpad Keybinds 0 Fullscreen 2 Font 24/Smallcaps Map View 50x44 Zoom Use 0% Tactical HUD 1 Map Filters SHIFT_HUE(80) Filters SHIFT_HUE(280) Steam X RUN: 7405b9d3-524f-4545-a479-493d4bbcb425